[Event "56th Biel Festival MTO 2023"]
[White "Collin,Moritz Valentin"]
[Black "Lohia,Sohum"]
[Site "Biel"]
[Round "4.35"]
[Annotator "ChessBase"]
[Result "1-0"]
[Date "2023.07.20"]
[WhiteElo "2132"]
[BlackElo "2247"]
[PlyCount "75"]
[TimeControl "60"]

1. d4 {[%emt 0:0:0]} Nf6 {[%emt 0:0:0]} 2. c4 {[%emt 0:0:0]} e6 {[%emt 0:0:0]} 3. Nc3 {[%emt 0:0:0]} Bb4 {[%emt 0:0:0]} 4. e3 {[%emt 0:0:0]} O-O {[%emt 0:0:0]} 5. Bd2 {[%emt 0:0:0]} d5 {[%emt 0:0:0]} 6. Nf3 {[%emt 0:0:0]} b6 {[%emt 0:0:0]} 7. cxd5 {[%emt 0:0:0]} exd5 {[%emt 0:0:0]} 8. Bd3 {[%emt 0:0:0]} Bd6 {[%emt 0:0:0]} 9. O-O {[%emt 0:0:0]} Re8 {[%emt 0:0:0]} 10. Nb5 {[%emt 0:0:0]} Bf8 {[%emt 0:0:0]} 11. Ne5 {[%emt 0:0:0]} Ba6 {[%emt 0:0:0]} 12. Qa4 {[%emt 0:11:50]} Bb7 {[%emt 0:14:5]} 13. Rac1 {[%emt 0:6:9]} c5 {[%emt 0:2:8]} 14. Nc3 {[%emt 0:5:54]} a6 {[%emt 0:3:33]} 15. a3 {[%emt 0:4:52]} b5 {[%emt 0:7:14]} 16. Qd1 {[%emt 0:0:21]} Bd6 {[%emt 0:2:33]} 17. f4 {[%emt 0:2:10]} Nc6 {[%emt 0:2:37]} 18. Ne2 {[%emt 0:16:6]} Qb6 {[%emt 0:18:5]} 19. Kh1 {[%emt 0:2:30]} c4 {[%emt 0:13:39]} 20. Bb1 {[%emt 0:2:49]} b4 {[%emt 0:1:47]} 21. axb4 {[%emt 0:5:24]} Nxb4 {[%emt 0:2:2]} 22. Ng3 {[%emt 0:5:15]} Bf8 {[%emt 0:6:51]} 23. Nh5 {[%emt 0:11:8]} Bc8 {[%emt 0:9:6]} 24. Nxf6+ {[%emt 0:5:2]} Qxf6 {[%emt 0:0:12]} 25. Qa4 {[%emt 0:1:14]} Rxe5 {[%emt 0:11:16]} 26. fxe5 {[%emt 0:3:6]} Qc6 {[%emt 0:0:58]} 27. Qd1 {[%emt 0:4:58]} Be6 {[%emt 0:1:3]} 28. b3 {[%emt 0:2:13]} Rd8 {[%emt 0:2:26]} 29. Bc3 {[%emt 0:3:27]} a5 {[%emt 0:1:14]} 30. Qf3 {[%emt 0:2:5]} a4 {[%emt 0:1:35]} 31. Bxb4 {[%emt 0:1:12]} Bxb4 {[%emt 0:0:20]} 32. bxc4 {[%emt 0:0:26]} a3 {[%emt 0:0:23]} 33. Ba2 {[%emt 0:1:21]} Qd7 {[%emt 0:0:59]} 34. cxd5 {[%emt 0:0:25]} Bxd5 {[%emt 0:0:7]} 35. Bxd5 {[%emt 0:0:7]} Qxd5 {[%emt 0:0:5]} 36. Qxd5 {[%emt 0:0:46]} Rxd5 {[%emt 0:0:5]} 37. Rc8+ {[%emt 0:0:13]} Bf8 {[%emt 0:0:1]} 38. e6 {[%emt 0:0:13]} 1-0

[Event "56th Biel Festival MTO 2023"]
[White "Urh,Zala"]
[Black "Matsumura,Cocoro"]
[Site "Biel"]
[Round "4.36"]
[Annotator "ChessBase"]
[Result "1-0"]
[Date "2023.07.20"]
[WhiteElo "2231"]
[BlackElo "2081"]
[PlyCount "81"]
[TimeControl "60"]

1. d4 {[%emt 0:0:0]} d5 {[%emt 0:0:0]} 2. Nf3 {[%emt 0:0:0]} Nf6 {[%emt 0:0:0]} 3. Bf4 {[%emt 0:0:0]} c5 {[%emt 0:0:0]} 4. e3 {[%emt 0:0:0]} Nc6 {[%emt 0:0:0]} 5. Nbd2 {[%emt 0:0:0]} Nh5 {[%emt 0:0:0]} 6. dxc5 {[%emt 0:0:0]} Nxf4 {[%emt 0:0:0]} 7. exf4 {[%emt 0:0:0]} g6 {[%emt 0:0:0]} 8. c3 {[%emt 0:0:0]} Bg7 {[%emt 0:0:0]} 9. Nb3 {[%emt 0:0:0]} O-O {[%emt 0:0:0]} 10. Be2 {[%emt 0:0:0]} Qc7 {[%emt 0:0:0]} 11. O-O {[%emt 0:4:29]} Qxf4 {[%emt 0:11:26]} 12. Qxd5 {[%emt 0:2:8]} Rd8 {[%emt 0:0:37]} 13. Qg5 {[%emt 0:4:1]} Qxg5 {[%emt 0:3:31]} 14. Nxg5 {[%emt 0:0:8]} Bf5 {[%emt 0:9:9]} 15. f4 {[%emt 0:11:1]} a5 {[%emt 0:17:32]} 16. Bc4 {[%emt 0:7:48]} e6 {[%emt 0:0:24]} 17. a4 {[%emt 0:0:11]} Bf8 {[%emt 0:26:38]} 18. Rac1 {[%emt 0:22:59]} Bh6 {[%emt 0:2:10]} 19. h4 {[%emt 0:6:0]} Rd7 {[%emt 0:9:32]} 20. Rfd1 {[%emt 0:5:42]} Rad8 {[%emt 0:0:39]} 21. Rxd7 {[%emt 0:0:55]} Rxd7 {[%emt 0:0:2]} 22. Kf2 {[%emt 0:1:10]} e5 {[%emt 0:4:48]} 23. g3 {[%emt 0:4:48]} Kg7 {[%emt 0:5:13]} 24. Re1 {[%emt 0:1:22]} exf4 {[%emt 0:2:11]} 25. gxf4 {[%emt 0:0:7]} f6 {[%emt 0:1:51]} 26. Re8 {[%emt 0:8:54]} Rd8 {[%emt 0:0:41]} 27. Rxd8 {[%emt 0:0:54]} Nxd8 {[%emt 0:0:0]} 28. Nxa5 {[%emt 0:0:48]} Kf8 {[%emt 0:0:33]} 29. Nxh7+ {[%emt 0:6:24]} Ke7 {[%emt 0:0:35]} 30. Kf3 {[%emt 0:0:39]} Bg7 {[%emt 0:1:32]} 31. Bd5 {[%emt 0:1:7]} g5 {[%emt 0:0:44]} 32. Nxf6 {[%emt 0:2:35]} Kxf6 {[%emt 0:1:22]} 33. hxg5+ {[%emt 0:0:13]} Ke7 {[%emt 0:0:39]} 34. Nxb7 {[%emt 0:0:11]} Be6 {[%emt 0:4:59]} 35. Be4 {[%emt 0:1:54]} Nf7 {[%emt 0:0:23]} 36. a5 {[%emt 0:2:4]} Bc4 {[%emt 0:0:29]} 37. Kg4 {[%emt 0:5:33]} Kd7 {[%emt 0:0:22]} 38. Kh5 {[%emt 0:0:44]} Bf8 {[%emt 0:0:39]} 39. Kg6 {[%emt 0:1:26]} Be7 {[%emt 0:0:26]} 40. b3 {[%emt 0:1:7]} Bxb3 {[%emt 0:0:30]} 41. a6 {[%emt 0:30:10]} 1-0

[Event "56th Biel Festival MTO 2023"]
[White "Akshit Kumar J"]
[Black "Costello,Alexander"]
[Site "Biel"]
[Round "4.37"]
[Annotator "NA RC"]
[Result "0-1"]
[Date "2023.07.20"]
[WhiteElo "2105"]
[BlackElo "2224"]
[PlyCount "82"]
[TimeControl "60"]

1. e4 {[%emt 0:0:0]} e5 {[%emt 0:0:0]} 2. Nf3 {[%emt 0:0:0]} Nc6 {[%emt 0:0:0]} 3. Bc4 {[%emt 0:0:0]} Bc5 {[%emt 0:0:0]} 4. c3 {[%emt 0:0:0]} Nf6 {[%emt 0:0:0]} 5. d3 {[%emt 0:0:0]} a6 {[%emt 0:0:0]} 6. a4 {[%emt 0:0:0]} d6 {[%emt 0:0:0]} 7. O-O {[%emt 0:0:0]} h6 {[%emt 0:0:0]} 8. Nbd2 {[%emt 0:0:58]} O-O {[%emt 0:0:0]} 9. h3 {[%emt 0:0:26]} Ba7 {[%emt 0:0:1]} 10. Re1 {[%emt 0:0:34]} Re8 {[%emt 0:1:14]} 11. b4 {[%emt 0:3:19]} Be6 {[%emt 0:0:58]} 12. Qc2 {[%emt 0:2:37]} Qd7 {[%emt 0:31:54]} 13. Bxe6 {[%emt 0:0:56]} Rxe6 {[%emt 0:15:56]} 14. Nc4 {[%emt 0:0:32]} d5 {[%emt 0:2:55]} 15. exd5 {[%emt 0:18:8]} Qxd5 {[%emt 0:0:9]} 16. Ne3 {[%emt 0:1:55]} Bxe3 {[%emt 0:6:46]} 17. Rxe3 {[%emt 0:3:23]} Qd7 {[%emt 0:2:5]} 18. Qb2 {[%emt 0:10:29]} Nd5 {[%emt 0:9:41]} 19. b5 {[%emt 0:2:12]} axb5 {[%emt 0:15:10]} 20. axb5 {[%emt 0:0:30]} Rxa1 {[%emt 0:0:11]} 21. Qxa1 {[%emt 0:1:38]} Nxe3 {[%emt 0:3:41]} 22. bxc6 {[%emt 0:0:26]} Qxd3 {[%emt 0:0:36]} 23. Bxe3 {[%emt 0:1:4]} bxc6 {[%emt 0:0:2]} 24. Qa5 {[%emt 0:14:44]} Qd6 {[%emt 0:2:54]} 25. Nh4 {[%emt 0:6:24]} Kh7 {[%emt 0:0:29]} 26. Nf5 {[%emt 0:5:50]} Qd3 {[%emt 0:2:57]} 27. g4 {[%emt 0:2:41]} Qd7 {[%emt 0:0:21]} 28. Qb4 {[%emt 0:4:31]} h5 {[%emt 0:1:38]} 29. Kh2 {[%emt 0:7:19]} g6 {[%emt 0:1:4]} 30. Nh6 {[%emt 0:2:57]} hxg4 {[%emt 0:1:10]} 31. hxg4 {[%emt 0:2:10]} f6 {[%emt 0:0:44]} 32. Kg3 {[%emt 0:5:2]} Kg7 {[%emt 0:0:13]} 33. Qb3 {[%emt 0:2:50]} Re8 {[%emt 0:0:42]} 34. Qc4 {[%emt 0:1:50]} f5 {[%emt 0:2:57]} 35. gxf5 {[%emt 0:1:52]} gxf5 {[%emt 0:0:1]} 36. Bg5 {[%emt 0:0:25]} Kg6 {[%emt 0:1:19]} 37. f4 {[%emt 0:0:43]} e4 {[%emt 0:0:33]} 38. Kh4 {[%emt 0:0:2]} Kh7 {[%emt 0:0:24]} 39. Nf7 {[%emt 0:0:57]} Qd2 {[%emt 0:0:30]} 40. Bf6 {[%emt 0:0:26]} Qh2+ {[%emt 0:0:40]} 41. Kg5 {[%emt 0:30:33]} Qg3+ {[%emt 0:30:1]} 0-1

[Event "56th Biel Festival MTO 2023"]
[White "Kamber,Bruno"]
[Black "Papaux,Steve"]
[Site "Biel"]
[Round "4.38"]
[Annotator "ChessBase"]
[Result "1-0"]
[Date "2023.07.20"]
[WhiteElo "2214"]
[BlackElo "2064"]
[PlyCount "107"]
[TimeControl "60"]

1. e4 {[%emt 0:0:0]} e5 {[%emt 0:0:0]} 2. Nf3 {[%emt 0:0:0]} Nc6 {[%emt 0:0:0]} 3. Bb5 {[%emt 0:0:0]} a6 {[%emt 0:0:0]} 4. Ba4 {[%emt 0:0:0]} Nf6 {[%emt 0:0:0]} 5. d3 {[%emt 0:0:0]} b5 {[%emt 0:0:0]} 6. Bb3 {[%emt 0:0:0]} Be7 {[%emt 0:0:0]} 7. a4 {[%emt 0:0:0]} b4 {[%emt 0:0:0]} 8. Nbd2 {[%emt 0:0:0]} a5 {[%emt 0:0:0]} 9. Nc4 {[%emt 0:0:0]} d6 {[%emt 0:0:0]} 10. c3 {[%emt 0:0:0]} O-O {[%emt 0:0:0]} 11. Bg5 {[%emt 0:0:0]} Be6 {[%emt 0:0:0]} 12. Bxf6 {[%emt 0:0:36]} Bxf6 {[%emt 0:0:0]} 13. Ne3 {[%emt 0:0:11]} Ne7 {[%emt 0:9:40]} 14. Bxe6 {[%emt 0:1:10]} fxe6 {[%emt 0:0:3]} 15. Qb3 {[%emt 0:0:21]} Qd7 {[%emt 0:1:45]} 16. cxb4 {[%emt 0:0:53]} axb4 {[%emt 0:0:3]} 17. Qxb4 {[%emt 0:1:21]} Rfb8 {[%emt 0:0:3]} 18. Qa3 {[%emt 0:0:31]} c5 {[%emt 0:0:42]} 19. O-O {[%emt 0:3:36]} Rb4 {[%emt 0:0:37]} 20. b3 {[%emt 0:2:46]} Nc6 {[%emt 0:1:46]} 21. Nc2 {[%emt 0:0:45]} Rb7 {[%emt 0:2:40]} 22. Rfb1 {[%emt 0:0:17]} Bd8 {[%emt 0:2:25]} 23. Qc1 {[%emt 0:3:37]} Rab8 {[%emt 0:4:35]} 24. Ra3 {[%emt 0:1:14]} Na5 {[%emt 0:1:5]} 25. Na1 {[%emt 0:0:41]} Rb4 {[%emt 0:4:22]} 26. Qd1 {[%emt 0:1:19]} Qb7 {[%emt 0:5:27]} 27. Nc2 {[%emt 0:1:13]} Rb6 {[%emt 0:0:54]} 28. Ne3 {[%emt 0:0:57]} c4 {[%emt 0:4:10]} 29. dxc4 {[%emt 0:4:13]} Qxe4 {[%emt 0:0:22]} 30. Nd2 {[%emt 0:22:30]} Qd3 {[%emt 0:3:32]} 31. Rba1 {[%emt 0:2:50]} Qg6 {[%emt 0:7:8]} 32. c5 {[%emt 0:3:3]} Rb4 {[%emt 0:5:55]} 33. Nec4 {[%emt 0:2:22]} d5 {[%emt 0:0:19]} 34. Nxe5 {[%emt 0:3:34]} Qf5 {[%emt 0:0:11]} 35. Nef3 {[%emt 0:13:33]} Bf6 {[%emt 0:4:40]} 36. Rb1 {[%emt 0:0:31]} e5 {[%emt 0:3:57]} 37. Ne1 {[%emt 0:1:5]} Rf4 {[%emt 0:10:56]} 38. b4 {[%emt 0:6:7]} Rfxb4 {[%emt 0:1:25]} 39. Rxb4 {[%emt 0:0:15]} Rxb4 {[%emt 0:0:7]} 40. Nc2 {[%emt 0:0:56]} Rb2 {[%emt 0:9:9]} 41. Ne3 {[%emt 0:30:36]} Qf4 {[%emt 0:32:47]} 42. Rd3 {[%emt 0:3:9]} d4 {[%emt 0:2:11]} 43. g3 {[%emt 0:1:46]} Qh6 {[%emt 0:2:40]} 44. Nec4 {[%emt 0:0:50]} Nxc4 {[%emt 0:1:35]} 45. Nxc4 {[%emt 0:0:8]} Rb4 {[%emt 0:0:34]} 46. Nd6 {[%emt 0:0:46]} Be7 {[%emt 0:3:41]} 47. Rb3 {[%emt 0:0:39]} Bxd6 {[%emt 0:1:57]} 48. Rxb4 {[%emt 0:0:36]} Bxc5 {[%emt 0:0:3]} 49. Qb3+ {[%emt 0:2:8]} Kf8 {[%emt 0:0:4]} 50. Rb8+ {[%emt 0:1:22]} Ke7 {[%emt 0:0:4]} 51. Qb7+ {[%emt 0:0:38]} Ke6 {[%emt 0:0:15]} 52. Re8+ {[%emt 0:1:52]} Kf5 {[%emt 0:0:16]} 53. Qf3+ {[%emt 0:0:34]} Kg5 {[%emt 0:0:4]} 54. h4+ {[%emt 0:0:14]} 1-0

[Event "56th Biel Festival MTO 2023"]
[White "Ouellet,Maili-Jade"]
[Black "Pernutz,Hans-Gerhard"]
[Site "Biel"]
[Round "4.39"]
[Annotator "ChessBase"]
[Result "1-0"]
[Date "2023.07.20"]
[WhiteElo "2201"]
[BlackElo "2054"]
[PlyCount "57"]
[TimeControl "60"]

1. d4 {[%emt 0:0:0]} d5 {[%emt 0:0:0]} 2. c4 {[%emt 0:0:0]} dxc4 {[%emt 0:0:0]} 3. e4 {[%emt 0:0:0]} e5 {[%emt 0:0:0]} 4. Nf3 {[%emt 0:0:0]} Bb4+ {[%emt 0:0:0]} 5. Nc3 {[%emt 0:0:0]} exd4 {[%emt 0:0:0]} 6. Nxd4 {[%emt 0:0:0]} Nd7 {[%emt 0:0:0]} 7. Bxc4 {[%emt 0:0:6]} Bxc3+ {[%emt 0:0:0]} 8. bxc3 {[%emt 0:28:56]} Ngf6 {[%emt 0:0:31]} 9. O-O {[%emt 0:0:30]} O-O {[%emt 0:0:59]} 10. Qc2 {[%emt 0:2:53]} Qe7 {[%emt 0:2:30]} 11. Re1 {[%emt 0:1:0]} Ne5 {[%emt 0:3:24]} 12. Bf1 {[%emt 0:1:24]} Re8 {[%emt 0:12:14]} 13. f4 {[%emt 0:12:56]} Ng6 {[%emt 0:1:8]} 14. e5 {[%emt 0:2:13]} Nd5 {[%emt 0:5:38]} 15. g3 {[%emt 0:2:27]} Qc5 {[%emt 0:1:55]} 16. Bb2 {[%emt 0:1:1]} Bd7 {[%emt 0:2:30]} 17. Qf2 {[%emt 0:11:44]} b5 {[%emt 0:12:19]} 18. Rac1 {[%emt 0:0:30]} c6 {[%emt 0:0:30]} 19. h4 {[%emt 0:4:41]} Nb6 {[%emt 0:4:32]} 20. h5 {[%emt 0:1:0]} Nf8 {[%emt 0:0:8]} 21. h6 {[%emt 0:1:22]} Nc4 {[%emt 0:13:1]} 22. hxg7 {[%emt 0:1:11]} Ng6 {[%emt 0:2:0]} 23. Bd3 {[%emt 0:7:0]} Rad8 {[%emt 0:1:58]} 24. Ba1 {[%emt 0:3:4]} Bg4 {[%emt 0:2:47]} 25. Be4 {[%emt 0:2:15]} Bd7 {[%emt 0:0:30]} 26. Rc2 {[%emt 0:1:21]} Qb6 {[%emt 0:2:21]} 27. Qh2 {[%emt 0:16:26]} c5 {[%emt 0:33:5]} 28. Qh6 {[%emt 0:0:30]} Ncxe5 {[%emt 0:0:30]} 29. Rh2 {[%emt 0:0:30]} 1-0

[Event "56th Biel Festival MTO 2023"]
[White "Lorscheid,Gerhard"]
[Black "Zhang,Lanlin"]
[Site "Biel"]
[Round "4.40"]
[Annotator "RC"]
[Result "1/2-1/2"]
[Date "2023.07.20"]
[WhiteElo "2099"]
[BlackElo "2194"]
[PlyCount "31"]
[TimeControl "60"]

1. Nf3 {[%emt 0:0:0]} Nf6 {[%emt 0:0:0]} 2. c4 {[%emt 0:0:0]} e6 {[%emt 0:0:0]} 3. g3 {[%emt 0:0:0]} b6 {[%emt 0:0:0]} 4. Bg2 {[%emt 0:0:0]} Bb7 {[%emt 0:0:0]} 5. b3 {[%emt 0:0:0]} Be7 {[%emt 0:0:0]} 6. Bb2 {[%emt 0:0:0]} O-O {[%emt 0:0:0]} 7. O-O {[%emt 0:0:0]} d6 {[%emt 0:0:0]} 8. d3 {[%emt 0:0:0]} Nbd7 {[%emt 0:0:0]} 9. e4 {[%emt 0:0:0]} a5 {[%emt 0:0:0]} 10. Nc3 {[%emt 0:0:0]} Nc5 {[%emt 0:0:0]} 11. Qc2 {[%emt 0:0:0]} Re8 {[%emt 0:1:15]} 12. Rfe1 {[%emt 0:0:11]} e5 {[%emt 0:1:53]} 13. Nd5 {[%emt 0:1:6]} Nxd5 {[%emt 0:1:23]} 14. exd5 {[%emt 0:1:14]} Bf6 {[%emt 0:2:58]} 15. d4 {[%emt 0:2:31]} exd4 {[%emt 0:0:43]} 16. Bxd4 {[%emt 0:5:42]} 1/2-1/2

[Event "56th Biel Festival MTO 2023"]
[White "Coles,Ruben"]
[Black "Rotunno,Flavio"]
[Site "Biel"]
[Round "4.41"]
[Annotator "ChessBase"]
[Result "1/2-1/2"]
[Date "2023.07.20"]
[WhiteElo "2167"]
[BlackElo "2005"]
[PlyCount "86"]
[TimeControl "60"]

1. e4 {[%emt 0:0:0]} c5 {[%emt 0:0:0]} 2. Nf3 {[%emt 0:0:0]} e6 {[%emt 0:0:0]} 3. b3 {[%emt 0:0:0]} a6 {[%emt 0:0:0]} 4. g3 {[%emt 0:0:0]} Nc6 {[%emt 0:0:0]} 5. Bg2 {[%emt 0:0:0]} d5 {[%emt 0:1:30]} 6. exd5 {[%emt 0:0:0]} exd5 {[%emt 0:0:4]} 7. O-O {[%emt 0:0:0]} Nf6 {[%emt 0:1:24]} 8. d4 {[%emt 0:0:0]} cxd4 {[%emt 0:5:0]} 9. Nxd4 {[%emt 0:2:35]} Be7 {[%emt 0:1:40]} 10. Bb2 {[%emt 0:3:39]} O-O {[%emt 0:3:5]} 11. h3 {[%emt 0:10:55]} Nxd4 {[%emt 0:16:1]} 12. Qxd4 {[%emt 0:5:54]} Be6 {[%emt 0:11:15]} 13. Nc3 {[%emt 0:4:47]} Qa5 {[%emt 0:20:32]} 14. Rad1 {[%emt 0:14:2]} Rfd8 {[%emt 0:3:37]} 15. Qd2 {[%emt 0:19:3]} Rac8 {[%emt 0:11:20]} 16. Ne4 {[%emt 0:18:48]} Qxd2 {[%emt 0:4:53]} 17. Nxd2 {[%emt 0:3:29]} Rxc2 {[%emt 0:3:15]} 18. Bd4 {[%emt 0:1:30]} Rxa2 {[%emt 0:3:8]} 19. Nb1 {[%emt 0:1:24]} Rc2 {[%emt 0:7:16]} 20. Nc3 {[%emt 0:2:33]} Rc8 {[%emt 0:0:58]} 21. Bxf6 {[%emt 0:2:33]} Bxf6 {[%emt 0:0:7]} 22. Nxd5 {[%emt 0:0:30]} Bxd5 {[%emt 0:1:39]} 23. Rxd5 {[%emt 0:4:7]} R2c7 {[%emt 0:1:48]} 24. Rfd1 {[%emt 0:2:42]} Kf8 {[%emt 0:1:35]} 25. Rd6 {[%emt 0:3:0]} Be7 {[%emt 0:0:42]} 26. R6d4 {[%emt 0:0:43]} a5 {[%emt 0:1:20]} 27. Rd5 {[%emt 0:0:48]} b6 {[%emt 0:0:13]} 28. Bf1 {[%emt 0:0:28]} Bc5 {[%emt 0:1:10]} 29. Rd7 {[%emt 0:0:40]} Rxd7 {[%emt 0:0:27]} 30. Rxd7 {[%emt 0:0:4]} Rb8 {[%emt 0:0:52]} 31. Bb5 {[%emt 0:0:33]} g6 {[%emt 0:0:25]} 32. Kg2 {[%emt 0:0:21]} Re8 {[%emt 0:0:28]} 33. Bc4 {[%emt 0:0:46]} Re7 {[%emt 0:0:3]} 34. Rd8+ {[%emt 0:0:38]} Kg7 {[%emt 0:0:4]} 35. Kf3 {[%emt 0:0:12]} Re5 {[%emt 0:0:30]} 36. Bd3 {[%emt 0:1:9]} Re6 {[%emt 0:0:13]} 37. Kg2 {[%emt 0:0:28]} Rd6 {[%emt 0:0:31]} 38. Rxd6 {[%emt 0:0:25]} Bxd6 {[%emt 0:0:4]} 39. Bc4 {[%emt 0:0:9]} g5 {[%emt 0:0:46]} 40. g4 {[%emt 0:0:32]} Kf6 {[%emt 0:1:2]} 41. Kf3 {[%emt 0:0:0]} Bc5 {[%emt 0:0:0]} 42. Ke2 {[%emt 0:0:0]} h6 {[%emt 0:0:0]} 43. f3 {[%emt 0:0:0]} Kg7 {[%emt 0:0:0]} 1/2-1/2

[Event "56th Biel Festival MTO 2023"]
[White "Ermitsch,Magnus"]
[Black "Hornung,Hans"]
[Site "Biel"]
[Round "4.42"]
[Annotator "ChessBase"]
[Result "1-0"]
[Date "2023.07.20"]
[WhiteElo "2232"]
[BlackElo "2047"]
[PlyCount "65"]
[TimeControl "60"]

1. e4 {[%emt 0:0:0]} d5 {[%emt 0:0:0]} 2. exd5 {[%emt 0:0:0]} Nf6 {[%emt 0:0:0]} 3. d4 {[%emt 0:0:0]} Nxd5 {[%emt 0:0:0]} 4. c4 {[%emt 0:0:0]} Nb6 {[%emt 0:0:0]} 5. Nc3 {[%emt 0:0:0]} e5 {[%emt 0:0:0]} 6. Qe2 {[%emt 0:6:58]} Be7 {[%emt 0:8:36]} 7. dxe5 {[%emt 0:2:56]} Nc6 {[%emt 0:5:57]} 8. Be3 {[%emt 0:2:5]} O-O {[%emt 0:7:35]} 9. Rd1 {[%emt 0:1:31]} Qe8 {[%emt 0:0:22]} 10. f4 {[%emt 0:6:53]} Bb4 {[%emt 0:12:42]} 11. Qc2 {[%emt 0:13:35]} f6 {[%emt 0:4:30]} 12. Bd3 {[%emt 0:1:14]} fxe5 {[%emt 0:2:18]} 13. Bxh7+ {[%emt 0:2:0]} Kh8 {[%emt 0:0:18]} 14. Bg6 {[%emt 0:2:18]} Qe7 {[%emt 0:1:40]} 15. Qe2 {[%emt 0:7:49]} Rf5 {[%emt 0:2:0]} 16. Bxf5 {[%emt 0:11:52]} Bxf5 {[%emt 0:6:43]} 17. Qh5+ {[%emt 0:7:46]} Bh7 {[%emt 0:0:10]} 18. Bxb6 {[%emt 0:1:7]} axb6 {[%emt 0:0:40]} 19. Nge2 {[%emt 0:0:9]} Bc5 {[%emt 0:6:45]} 20. Nd5 {[%emt 0:1:58]} Bb4+ {[%emt 0:6:55]} 21. Nec3 {[%emt 0:3:26]} Qc5 {[%emt 0:1:5]} 22. a3 {[%emt 0:10:32]} Bxc3+ {[%emt 0:0:43]} 23. Nxc3 {[%emt 0:0:16]} Qe3+ {[%emt 0:2:21]} 24. Qe2 {[%emt 0:1:18]} Qxf4 {[%emt 0:0:36]} 25. Nd5 {[%emt 0:1:22]} Qh4+ {[%emt 0:2:25]} 26. g3 {[%emt 0:0:23]} Qh3 {[%emt 0:0:43]} 27. Rf1 {[%emt 0:1:23]} Nd4 {[%emt 0:1:34]} 28. Qxe5 {[%emt 0:2:9]} Nc2+ {[%emt 0:3:56]} 29. Kd2 {[%emt 0:1:8]} Qxh2+ {[%emt 0:7:1]} 30. Qe2 {[%emt 0:0:55]} Qxg3 {[%emt 0:1:53]} 31. Rh1 {[%emt 0:1:21]} Qg6 {[%emt 0:4:49]} 32. Qh5 {[%emt 0:1:57]} Qxh5 {[%emt 0:3:56]} 33. Rxh5 {[%emt 0:0:7]} 1-0

[Event "56th Biel Festival MTO 2023"]
[White "Kocharin,Timur"]
[Black "Schnell,Simon"]
[Site "Biel"]
[Round "4.43"]
[Annotator "RC"]
[Result "1-0"]
[Date "2023.07.20"]
[WhiteElo "2225"]
[BlackElo "2029"]
[PlyCount "145"]
[TimeControl "60"]

1. c4 {[%emt 0:0:0]} Nf6 {[%emt 0:0:0]} 2. Nc3 {[%emt 0:0:0]} e5 {[%emt 0:0:0]} 3. g3 {[%emt 0:0:0]} d5 {[%emt 0:0:0]} 4. cxd5 {[%emt 0:0:0]} Nxd5 {[%emt 0:0:0]} 5. Bg2 {[%emt 0:0:0]} Nxc3 {[%emt 0:0:0]} 6. bxc3 {[%emt 0:0:0]} Nc6 {[%emt 0:0:0]} 7. Bb2 {[%emt 0:2:33]} Bc5 {[%emt 0:0:0]} 8. d3 {[%emt 0:2:15]} O-O {[%emt 0:0:0]} 9. Nf3 {[%emt 0:0:43]} Rb8 {[%emt 0:0:0]} 10. O-O {[%emt 0:1:42]} Qf6 {[%emt 0:0:0]} 11. Nd2 {[%emt 0:9:53]} Qg6 {[%emt 0:12:34]} 12. Nb3 {[%emt 0:3:47]} Bd6 {[%emt 0:22:50]} 13. c4 {[%emt 0:10:2]} Re8 {[%emt 0:4:30]} 14. Qd2 {[%emt 0:8:36]} Qh5 {[%emt 0:4:12]} 15. e3 {[%emt 0:11:4]} Bh3 {[%emt 0:9:11]} 16. Qd1 {[%emt 0:4:12]} Bg4 {[%emt 0:8:10]} 17. f3 {[%emt 0:1:24]} Bh3 {[%emt 0:7:17]} 18. Qe2 {[%emt 0:2:43]} Bxg2 {[%emt 0:0:6]} 19. Kxg2 {[%emt 0:0:21]} Rbd8 {[%emt 0:2:35]} 20. Rad1 {[%emt 0:3:48]} Bf8 {[%emt 0:2:33]} 21. a3 {[%emt 0:2:52]} Re6 {[%emt 0:3:56]} 22. Rd2 {[%emt 0:4:3]} Rde8 {[%emt 0:3:34]} 23. Qf2 {[%emt 0:4:54]} Rh6 {[%emt 0:1:27]} 24. Kg1 {[%emt 0:2:6]} Rhe6 {[%emt 0:1:39]} 25. Rfd1 {[%emt 0:3:38]} Rf6 {[%emt 0:1:10]} 26. Rf1 {[%emt 0:1:4]} Rfe6 {[%emt 0:0:18]} 27. Kh1 {[%emt 0:0:46]} b6 {[%emt 0:1:22]} 28. Qe2 {[%emt 0:2:31]} Nb8 {[%emt 0:1:13]} 29. Re1 {[%emt 0:0:50]} c5 {[%emt 0:0:21]} 30. f4 {[%emt 0:1:34]} Qxe2 {[%emt 0:1:54]} 31. Rdxe2 {[%emt 0:0:2]} exf4 {[%emt 0:0:51]} 32. gxf4 {[%emt 0:0:11]} f5 {[%emt 0:4:20]} 33. Kg2 {[%emt 0:1:7]} Nc6 {[%emt 0:1:18]} 34. Kf3 {[%emt 0:0:27]} g6 {[%emt 0:2:31]} 35. h3 {[%emt 0:6:15]} Nd8 {[%emt 0:1:9]} 36. d4 {[%emt 0:2:15]} Nb7 {[%emt 0:1:42]} 37. d5 {[%emt 0:1:34]} R6e7 {[%emt 0:1:13]} 38. Nd2 {[%emt 0:3:41]} Nd6 {[%emt 0:1:1]} 39. e4 {[%emt 0:5:32]} fxe4+ {[%emt 0:1:47]} 40. Nxe4 {[%emt 0:0:4]} Nxe4 {[%emt 0:1:0]} 41. Rxe4 {[%emt 0:30:14]} Kf7 {[%emt 0:0:0]} 42. Rxe7+ {[%emt 0:0:0]} Bxe7 {[%emt 0:0:0]} 43. Re6 {[%emt 0:0:0]} Rb8 {[%emt 0:0:0]} 44. Be5 {[%emt 0:0:0]} Rb7 {[%emt 0:0:0]} 45. Rc6 {[%emt 0:0:0]} Bd8 {[%emt 0:5:33]} 46. Ke4 {[%emt 0:0:0]} b5 {[%emt 0:5:21]} 47. Rxc5 {[%emt 0:0:0]} bxc4 {[%emt 0:0:8]} 48. Rxc4 {[%emt 0:0:0]} Rb1 {[%emt 0:0:16]} 49. Rc8 {[%emt 0:0:0]} Re1+ {[%emt 0:2:4]} 50. Kd3 {[%emt 0:0:0]} Ke7 {[%emt 0:3:36]} 51. Rb8 {[%emt 0:0:0]} Bb6 {[%emt 0:6:54]} 52. Rb7+ {[%emt 0:0:0]} Ke8 {[%emt 0:0:22]} 53. d6 {[%emt 0:0:0]} Rd1+ {[%emt 0:1:16]} 54. Kc4 {[%emt 0:0:0]} h5 {[%emt 0:0:51]} 55. Rg7 {[%emt 0:0:0]} a6 {[%emt 0:0:33]} 56. Rb7 {[%emt 0:0:0]} Bf2 {[%emt 0:6:9]} 57. Re7+ {[%emt 0:0:0]} Kd8 {[%emt 0:4:9]} 58. Rg7 {[%emt 0:0:0]} Ke8 {[%emt 0:0:24]} 59. Rxg6 {[%emt 0:0:0]} Kd7 {[%emt 0:0:16]} 60. Rg7+ {[%emt 0:0:0]} Ke6 {[%emt 0:0:32]} 61. Re7+ {[%emt 0:0:59]} Kf5 {[%emt 0:0:19]} 62. d7 {[%emt 0:1:56]} Bh4 {[%emt 0:1:50]} 63. Rh7 {[%emt 0:1:8]} Ke4 {[%emt 0:0:31]} 64. Rxh5 {[%emt 0:0:23]} Be7 {[%emt 0:0:24]} 65. Rh7 {[%emt 0:1:40]} Bd8 {[%emt 0:2:37]} 66. Kc5 {[%emt 0:1:2]} Kf5 {[%emt 0:0:0]} 67. Kc6 {[%emt 0:0:0]} Rc1+ {[%emt 0:0:0]} 68. Kb7 {[%emt 0:0:0]} Ke6 {[%emt 0:0:0]} 69. Kxa6 {[%emt 0:0:0]} Rb1 {[%emt 0:0:0]} 70. Bc3 {[%emt 0:0:0]} Rb8 {[%emt 0:0:0]} 71. Bb4 {[%emt 0:0:0]} Kd5 {[%emt 0:0:0]} 72. Ka7 {[%emt 0:0:0]} Rb5 {[%emt 0:0:0]} 73. Rh5+ {[%emt 0:0:0]} 1-0

[Event "56th Biel Festival MTO 2023"]
[White "Jaksland,Tim"]
[Black "Ribiere,Damien"]
[Site "Biel"]
[Round "4.44"]
[Annotator "ChessBase"]
[Result "0-1"]
[Date "2023.07.20"]
[WhiteElo "2136"]
[BlackElo "2213"]
[PlyCount "62"]
[TimeControl "60"]

1. e4 {[%emt 0:0:0]} e5 {[%emt 0:0:0]} 2. Nf3 {[%emt 0:0:0]} Nc6 {[%emt 0:0:0]} 3. d4 {[%emt 0:0:0]} exd4 {[%emt 0:0:0]} 4. Nxd4 {[%emt 0:0:0]} Bc5 {[%emt 0:0:0]} 5. Nb3 {[%emt 0:0:0]} Bb6 {[%emt 0:0:0]} 6. Nc3 {[%emt 0:0:0]} Qf6 {[%emt 0:0:0]} 7. Qe2 {[%emt 0:0:43]} Nge7 {[%emt 0:0:0]} 8. h4 {[%emt 0:3:0]} d6 {[%emt 0:0:0]} 9. Bg5 {[%emt 0:3:48]} Qe6 {[%emt 0:0:0]} 10. O-O-O {[%emt 0:2:41]} Bd7 {[%emt 0:0:0]} 11. f3 {[%emt 0:13:9]} O-O-O {[%emt 0:0:0]} 12. Nd5 {[%emt 0:19:4]} f6 {[%emt 0:0:0]} 13. Nxb6+ {[%emt 0:1:23]} axb6 {[%emt 0:0:0]} 14. Bf4 {[%emt 0:1:14]} f5 {[%emt 0:2:25]} 15. exf5 {[%emt 0:5:36]} Qxf5 {[%emt 0:2:7]} 16. Qd2 {[%emt 0:11:34]} Rhf8 {[%emt 0:2:59]} 17. Bg5 {[%emt 0:0:35]} Qf7 {[%emt 0:2:19]} 18. Kb1 {[%emt 0:4:27]} Rde8 {[%emt 0:2:5]} 19. Nd4 {[%emt 0:8:56]} Nf5 {[%emt 0:4:58]} 20. Nxf5 {[%emt 0:2:26]} Bxf5 {[%emt 0:0:13]} 21. Qc3 {[%emt 0:4:25]} h6 {[%emt 0:6:35]} 22. Bc1 {[%emt 0:0:28]} Re5 {[%emt 0:6:14]} 23. Bd3 {[%emt 0:6:22]} Bxd3 {[%emt 0:7:41]} 24. Rxd3 {[%emt 0:0:6]} Qg6 {[%emt 0:4:45]} 25. Rd2 {[%emt 0:1:53]} Rfe8 {[%emt 0:2:1]} 26. b3 {[%emt 0:2:4]} Re2 {[%emt 0:7:24]} 27. Rg1 {[%emt 0:2:30]} R2e3 {[%emt 0:11:24]} 28. Qc4 {[%emt 0:6:3]} Ne5 {[%emt 0:1:13]} 29. Qf4 {[%emt 0:1:57]} Nxf3 {[%emt 0:1:32]} 30. Rf2 {[%emt 0:0:8]} Re2 {[%emt 0:2:34]} 31. Rxe2 {[%emt 0:0:53]} Rxe2 {[%emt 0:0:5]} 0-1